bitfinex/quotes_SOLUSD_20250718
["timestamp","ask_amount","ask_price","bid_price","bid_amount"]
[1752828317241,31.46,179.13,179.09,0.68]
[1752828317563,49.73629755,179.14,179.09,18.99629755]
[1752828317764,31.42,179.14,179.11,18.31629755]
[1752828317964,0.06,179.15,179.11,18.99629755]
[1752828318378,6.36195641,179.15,179.07,6.26429982]
[1752828318664,45.03629755,179.14,179.09,18.31629755]
[1752828318872,26.0,179.14,179.11,18.31629755]
[1752828319045,31.46,179.15,179.12,0.68]
[1752828319247,0.06,179.15,179.14,18.31629755]
[1752828319547,0.06,179.15,179.14,18.99629755]
[1752828320546,0.06,179.15,179.14,24.57852374]
[1752828322261,0.06,179.15,179.14,25.13674635]
[1752828322661,0.06,179.18,179.14,39.09231182]
[1752828322981,0.06,179.18,179.17,18.31629755]
[1752828323150,0.06,179.18,179.17,18.8744267]
[1752828323464,0.06,179.18,179.17,19.5544267]
[1752828324067,0.06,179.18,179.17,18.99629755]
[1752828324681,0.06,179.18,179.17,24.57758906]
[1752828325254,0.1,179.2,179.18,1.5283]
[1752828325453,0.1,179.2,179.19,18.8743644]
[1752828325654,0.1,179.2,179.19,19.5543644]
[1752828325876,0.06,179.22,179.19,44.05076195]
[1752828326083,0.1,179.33,179.21,18.31629755]
[1752828326253,0.1,179.33,179.3,18.31629755]
[1752828326572,0.1,179.33,179.31,18.31629755]
[1752828326765,0.1,179.33,179.32,18.31629755]
[1752828327251,0.1,179.33,179.32,0.66]
[1752828327451,0.1,179.33,179.3,6.73782448]
[1752828327756,0.1,179.33,179.32,18.97629755]
[1752828327953,0.1,179.33,179.32,19.53395982]
[1752828328372,0.1,179.33,179.32,18.97629755]
[1752828328581,0.1,179.33,179.3,6.73782448]
[1752828328782,0.1,179.33,179.32,18.97629755]
[1752828328959,0.1,179.33,179.32,25.11058261]
[1752828330476,0.1,179.36,179.32,70.4321396]
[1752828330670,0.1,179.36,179.35,23.89198754]
[1752828330869,0.1,179.36,179.35,24.44955653]
[1752828331077,0.1,179.36,179.35,25.10955653]
[1752828331654,0.04,179.47,179.35,39.0487815]
[1752828331981,0.04,179.47,179.36,0.66]
[1752828332155,18.35629755,179.47,179.37,31.87750682]
[1752828332356,18.31629755,179.43,179.37,0.55750682]
[1752828332585,26.0,179.44,179.36,18.31629755]
[1752828332762,26.0,179.44,179.39,18.31629755]
[1752828333076,26.0,179.44,179.4,18.97629755]
[1752828333279,24.58857489,179.46,179.41,18.31629755]
[1752828333578,0.04,179.47,179.43,18.31629755]
[1752828333882,6.311965,179.47,179.38,0.66]
[1752828334081,0.04,179.47,179.42,18.31629755]
[1752828334264,5.61203317,179.47,179.42,18.31629755]
[1752828334463,26.04,179.47,179.42,18.31629755]
[1752828334662,0.04,179.47,179.45,18.31629755]
[1752828334887,0.04,179.47,179.45,18.97629755]
[1752828335381,0.04,179.47,179.42,6.23348161]
[1752828335684,0.04,179.47,179.44,18.31629755]
[1752828335870,0.04,179.47,179.43,0.66]
[1752828336074,0.04,179.47,179.44,0.66]
[1752828336264,0.04,179.47,179.46,18.31629755]
[1752828336457,0.04,179.47,179.43,0.5573204]
[1752828336458,0.04,179.47,179.45,18.31629755]
[1752828336656,0.04,179.47,179.44,23.88913338]
[1752828336863,0.04,179.47,179.46,18.31629755]
[1752828337068,0.04,179.47,179.45,18.31629755]
[1752828337478,0.04,179.47,179.45,18.97629755]
[1752828338059,0.04,179.47,179.44,18.31629755]
[1752828338271,0.04,179.47,179.45,18.31629755]
[1752828338470,0.04,179.47,179.42,6.13079317]
[1752828338669,0.04,179.47,179.45,0.66]
[1752828338877,0.04,179.47,179.42,5.57326824]
[1752828339092,18.35629755,179.47,179.42,23.88956579]
[1752828339270,18.35629755,179.47,179.42,18.31629755]
[1752828339467,0.04,179.47,179.42,18.97629755]
[1752828339689,18.31629755,179.46,179.41,6.2425]
[1752828339980,18.31629755,179.43,179.38,18.31629755]
[1752828340184,18.31629755,179.43,179.37,11.87538295]
[1752828340385,26.7,179.45,179.37,24.61689755]
[1752828340576,18.31629755,179.44,179.39,18.31629755]
[1752828340776,26.0,179.45,179.39,18.31629755]
[1752828340983,26.0,179.45,179.41,18.31629755]
[1752828341161,18.31629755,179.43,179.38,0.55747574]
[1752828341368,18.31629755,179.4,179.33,6.23631182]
[1752828341578,31.94,179.44,179.33,6.23631182]
[1752828341779,0.7,179.42,179.35,18.31629755]
[1752828342068,31.24,179.44,179.37,18.31629755]
[1752828342386,18.31629755,179.43,179.38,18.31629755]
[1752828342583,0.7,179.43,179.36,18.31629755]
[1752828342788,18.31629755,179.41,179.36,18.31629755]
[1752828342992,18.31629755,179.4,179.35,23.8918556]
[1752828343163,18.31629755,179.4,179.34,5.57594974]
[1752828343367,5.57362784,179.42,179.32,6.638]
[1752828343368,18.31629755,179.37,179.32,6.638]
[1752828343592,18.31629755,179.38,179.32,7.298]
[1752828343799,18.31629755,179.38,179.33,18.31629755]
[1752828343969,0.7,179.41,179.33,18.97629755]
[1752828344279,18.31629755,179.37,179.32,12.21450798]
[1752828344480,0.7,179.36,179.3,24.55339425]
[1752828344675,31.24,179.38,179.34,18.31629755]
[1752828344873,31.24,179.38,179.35,18.97629755]
[1752828345073,31.24,179.38,179.34,5.57576847]
[1752828345074,31.24,179.38,179.36,18.97629755]
[1752828345286,44.31629755,179.42,179.37,18.97629755]
[1752828345588,31.57371689,179.42,179.37,0.66]
[1752828345785,18.31629755,179.41,179.36,18.31629755]
[1752828345962,18.31629755,179.39,179.34,24.55206602]
[1752828346168,18.31629755,179.4,179.35,18.97629755]
[1752828346488,18.31629755,179.41,179.35,18.97629755]
[1752828346693,18.31629755,179.4,179.35,0.66]
[1752828346871,18.31629755,179.38,179.32,0.66]
[1752828347191,18.31629755,179.38,179.32,36.97629755]
[1752828347693,44.31629755,179.42,179.37,18.31629755]
[1752828347869,44.31629755,179.42,179.35,18.31629755]
[1752828347870,18.31629755,179.41,179.35,18.31629755]
[1752828348072,18.31629755,179.38,179.33,0.66]
[1752828348289,18.31629755,179.39,179.34,18.31629755]
[1752828348482,31.57365458,179.42,179.32,18.0]
[1752828348690,18.31629755,179.37,179.32,18.0]
[1752828348998,31.18,179.38,179.32,18.0]
[1752828349176,18.31629755,179.36,179.32,18.0]
[1752828349599,18.31629755,179.35,179.32,18.0]
[1752828349775,18.31629755,179.34,179.32,18.0]
[1752828350093,18.31629755,179.35,179.32,18.0]
[1752828350599,37.07481243,179.38,179.32,23.57659589]
[1752828350775,18.31629755,179.37,179.32,42.55289344]
[1752828350976,31.12,179.38,179.34,12.21297712]
[1752828351284,43.33297712,179.4,179.35,12.87297712]
[1752828351481,12.21297712,179.37,179.32,23.57659589]
[1752828351690,12.21297712,179.34,179.32,18.0]
[1752828351903,26.0,179.39,179.32,18.0]
[1752828351904,12.53297712,179.33,179.32,18.0]
[1752828352478,12.21297712,179.33,179.32,18.0]
[1752828352690,26.0,179.33,179.32,18.0]
[1752828353090,38.21297712,179.33,179.32,18.0]
[1752828353289,38.53297712,179.33,179.32,18.0]
[1752828354797,44.10928894,179.33,179.32,18.0]
[1752828354996,60.89397291,179.33,179.32,18.0]
[1752828355204,38.21297712,179.35,179.32,18.0]
[1752828355376,5.57537912,179.36,179.32,18.0]
[1752828355377,29.31766109,179.33,179.32,18.0]
[1752828355779,26.0,179.31,179.28,0.03]
[1752828356004,26.0,179.31,179.2,5.58033139]
[1752828356005,26.0,179.25,179.17,0.66]
[1752828356208,12.21297712,179.2,179.17,0.66]
[1752828356378,12.21297712,179.21,179.17,0.66]
[1752828356697,47.88468397,179.24,179.16,5.58153232]
[1752828356698,12.21297712,179.22,179.18,0.71]
[1752828356881,12.21297712,179.22,179.18,6.29093902]
[1752828357084,43.31297712,179.24,179.19,0.71]
[1752828357293,31.1,179.24,179.2,0.71]
[1752828357785,12.21297712,179.23,179.18,17.79391614]
[1752828358187,12.21297712,179.23,179.19,0.71]
[1752828358382,43.31297712,179.24,179.2,0.71]
[1752828358583,31.1,179.24,179.21,12.92297712]
[1752828358793,31.1,179.24,179.22,5.5797344]
[1752828358989,31.1,179.24,179.22,6.2897344]
[1752828359525,5.57669269,179.32,179.23,12.92297712]
[1752828359677,12.21297712,179.3,179.25,12.21297712]
[1752828359883,12.21297712,179.3,179.26,0.71]
[1752828360214,26.0,179.29,179.26,0.71]
[1752828360427,26.0,179.28,179.23,12.92297712]
[1752828360584,57.08,179.28,179.24,12.92297712]
[1752828360781,31.08,179.28,179.26,17.79146646]
[1752828361008,12.21297712,179.4,179.27,12.92297712]
[1752828361180,5.86472699,179.39,179.31,12.21297712]
[1752828361384,69.27297712,179.37,179.32,12.21297712]
[1752828361586,43.27297712,179.37,179.32,12.92297712]
[1752828361792,16.78468397,179.36,179.32,12.92297712]
[1752828361994,0.29,179.4,179.29,0.71]
[1752828362296,43.29297712,179.39,179.34,12.21297712]
[1752828362492,31.08,179.39,179.35,12.92297712]
[1752828362697,12.21297712,179.37,179.32,12.21297712]
[1752828362899,31.08,179.39,179.35,12.21297712]
[1752828363106,31.08,179.39,179.36,12.21297712]
[1752828363478,31.08,179.39,179.33,19.51709138]
[1752828363479,31.08,179.39,179.33,5.57631182]
[1752828363711,12.21297712,179.37,179.33,5.57631182]
[1752828363908,16.84468397,179.38,179.34,12.21297712]
[1752828364110,0.06,179.38,179.35,12.92297712]
[1752828364388,0.06,179.38,179.36,0.71]
[1752828364787,0.06,179.38,179.36,6.28513787]
[1752828365090,0.06,179.38,179.37,0.71]
[1752828365403,0.06,179.38,179.37,12.92297712]
[1752828366994,0.06,179.38,179.37,18.49804541]
[1752828367419,0.06,179.42,179.37,32.43571614]
[1752828367601,0.06,179.42,179.41,12.21297712]
[1752828368120,0.06,179.42,179.41,12.92297712]
[1752828368892,0.06,179.42,179.41,18.49680243]
[1752828369584,0.06,179.42,179.41,19.05418496]
[1752828370419,0.06,179.42,179.41,6.84120784]
[1752828370591,0.06,179.42,179.39,12.21297712]
[1752828370920,0.06,179.42,179.39,17.78713579]
[1752828371224,0.06,179.42,179.41,12.21297712]
[1752828371393,0.06,179.42,179.4,0.71]
[1752828371587,12.27297712,179.42,179.37,12.21297712]
[1752828371813,12.27297712,179.42,179.37,12.92297712]
[1752828372109,12.27297712,179.42,179.36,5.57537912]
[1752828372334,12.21297712,179.4,179.35,7.17384826]
[1752828372626,29.05766109,179.42,179.37,12.21297712]
[1752828372806,12.21297712,179.39,179.35,7.17384826]
[1752828373118,16.78468397,179.41,179.35,19.38682538]
[1752828373296,12.21297712,179.4,179.35,19.38682538]
[1752828373497,12.21297712,179.37,179.32,12.21297712]
[1752828373719,12.21297712,179.35,179.31,5.5769338]
[1752828374019,16.78468397,179.34,179.31,5.5769338]
[1752828374329,28.99766109,179.34,179.3,6.28717145]
[1752828374503,28.99766109,179.32,179.27,12.92297712]
[1752828374694,12.21297712,179.31,179.27,5.57793765]
[1752828374900,12.21297712,179.29,179.25,5.57873436]
[1752828375115,16.78468397,179.3,179.25,6.28873436]
[1752828375303,16.78468397,179.3,179.26,12.92297712]
[1752828375497,31.04,179.32,179.26,12.21297712]
[1752828375797,31.04,179.32,179.27,0.71]
[1752828376107,31.04,179.32,179.28,12.92297712]
[1752828376303,16.78468397,179.31,179.26,12.21297712]
[1752828376512,28.99766109,179.31,179.26,12.21297712]
[1752828376722,16.78468397,179.31,179.26,12.92297712]
[1752828376903,28.99766109,179.31,179.26,0.71]
[1752828377105,16.78468397,179.29,179.25,5.57853624]
[1752828377417,18.20985436,179.3,179.25,23.7883906]
[1752828377727,34.99453833,179.31,179.26,0.71]
[1752828377910,34.99453833,179.31,179.26,18.91985436]
[1752828378214,26.0,179.31,179.27,0.71]
[1752828378400,44.20985436,179.31,179.26,18.20985436]
[1752828378598,26.0,179.31,179.27,0.71]
[1752828378795,26.0,179.31,179.28,0.71]
[1752828379001,31.04,179.32,179.3,23.7870992]
[1752828379196,31.04,179.32,179.3,6.28724484]
[1752828379694,31.04,179.32,179.3,24.4970992]
[1752828379894,44.20985436,179.34,179.3,6.28724484]
[1752828380098,34.99453833,179.37,179.32,18.20985436]
[1752828380297,31.04,179.37,179.33,18.91985436]
[1752828380496,31.04,179.37,179.3,5.57724484]
[1752828380497,31.04,179.37,179.36,18.20985436]
[1752828380700,31.04,179.4,179.36,18.91985436]
[1752828380962,31.04,179.4,179.37,18.91985436]
[1752828381131,31.04,179.4,179.38,23.78461185]
[1752828381297,31.04,179.4,179.39,18.20985436]
[1752828381494,31.04,179.4,179.38,24.49461185]
[1752828381708,57.1,179.42,179.38,6.28475749]
[1752828382027,31.1,179.42,179.39,18.20985436]
[1752828382203,31.1,179.42,179.39,18.91985436]
[1752828382406,31.1,179.42,179.41,18.20985436]
[1752828382606,31.1,179.42,179.4,18.91985436]
[1752828382813,0.06,179.42,179.38,6.13223323]
[1752828383021,0.06,179.42,179.41,24.49367967]
[1752828383723,0.06,179.42,179.41,6.28382531]
[1752828384235,0.06,179.42,179.39,5.57444673]
[1752828384413,0.57,179.42,179.36,5.57537912]
[1752828384609,18.77985436,179.42,179.36,23.78523348]
[1752828384831,18.77985436,179.42,179.37,18.20985436]
[1752828384832,0.06,179.42,179.37,18.20985436]
[1752828385031,0.06,179.42,179.36,5.57537912]
[1752828385032,0.06,179.42,179.4,5.574136]
[1752828385443,0.06,179.42,179.41,0.71]
[1752828385659,0.06,179.42,179.39,23.78423533]
[1752828385823,0.06,179.42,179.38,23.78457901]
[1752828386350,0.51,179.41,179.36,5.57530336]
[1752828386557,18.20985436,179.4,179.36,5.57530336]
[1752828387050,49.24985436,179.41,179.36,23.78515772]
[1752828387351,49.24985436,179.41,179.37,0.7]
[1752828387531,18.20985436,179.4,179.36,5.57530336]
[1752828387738,31.55,179.41,179.36,5.57530336]
[1752828387739,31.55,179.41,179.36,23.78515772]
[1752828387932,49.75985436,179.41,179.36,5.57530336]
[1752828388232,31.04,179.41,179.37,18.20985436]
[1752828388548,31.04,179.41,179.37,18.90985436]
[1752828388850,49.24985436,179.41,179.37,0.7]
[1752828389060,18.20985436,179.4,179.36,5.57530336]
[1752828389737,18.20985436,179.4,179.32,18.20985436]
[1752828389738,18.20985436,179.37,179.32,18.20985436]
[1752828390059,18.20985436,179.38,179.33,18.20985436]
[1752828390234,31.04,179.38,179.33,0.7]
[1752828390436,31.04,179.38,179.33,18.90985436]
[1752828390730,31.04,179.38,179.35,18.20985436]
[1752828390937,31.04,179.38,179.34,18.20985436]
[1752828391236,31.04,179.38,179.35,5.57568999]
[1752828391456,31.04,179.38,179.35,24.48554435]
[1752828391653,31.04,179.38,179.35,23.78554435]
[1752828391950,31.04,179.38,179.36,18.90985436]
[1752828392243,0.06,179.42,179.37,18.90985436]
[1752828392444,0.06,179.42,179.4,18.20985436]
[1752828392649,18.26985436,179.42,179.35,19.51491496]
[1752828392850,18.26985436,179.42,179.37,18.90985436]
[1752828393149,0.06,179.42,179.38,18.20985436]
[1752828393349,0.06,179.42,179.34,0.7]
[1752828393350,18.20985436,179.4,179.34,0.7]
[1752828393558,18.20985436,179.41,179.36,18.20985436]
[1752828393759,18.20985436,179.41,179.36,18.90985436]
[1752828394059,18.20985436,179.37,179.33,5.57631182]
[1752828394253,18.20985436,179.35,179.32,5.57657176]
[1752828394554,18.20985436,179.35,179.3,20.56995436]
[1752828394737,16.78468397,179.36,179.3,18.20985436]
[1752828394944,18.20985436,179.35,179.31,5.5769177]
[1752828395137,18.20985436,179.39,179.34,18.20985436]
[1752828395447,26.0,179.37,179.35,5.57568999]
[1752828395756,26.0,179.37,179.33,18.20985436]
[1752828395979,26.0,179.37,179.33,23.78608949]
[1752828396538,26.0,179.37,179.34,18.90985436]
[1752828396760,26.0,179.37,179.35,0.7]
[1752828396956,26.0,179.37,179.34,0.7]
[1752828397164,26.0,179.37,179.33,17.79077303]
[1752828397336,12.2145379,179.36,179.31,17.7914717]
[1752828397657,12.2145379,179.36,179.31,18.4914717]
[1752828398336,12.2145379,179.36,179.31,17.7914717]
[1752828398560,38.2145379,179.37,179.32,12.9145379]
[1752828398747,26.0,179.37,179.34,12.2145379]
[1752828398955,26.0,179.37,179.34,12.9145379]
[1752828399263,26.0,179.37,179.34,5.57600089]
[1752828399451,38.2145379,179.37,179.34,5.57600089]
[1752828399652,26.0,179.37,179.34,5.57600089]
[1752828400060,26.0,179.37,179.34,6.27600089]
[1752828400559,26.0,179.37,179.34,5.57600089]
[1752828401068,38.2145379,179.37,179.34,5.57600089]
[1752828401366,38.2145379,179.37,179.33,5.57631182]
[1752828401756,26.0,179.39,179.34,12.9145379]
[1752828401956,69.2345379,179.39,179.34,12.9145379]
[1752828402264,31.08,179.42,179.38,12.2145379]
[1752828402570,57.08,179.42,179.38,12.9145379]
[1752828402746,31.08,179.42,179.38,12.9145379]
[1752828402953,31.08,179.42,179.39,12.9145379]
[1752828403158,0.06,179.42,179.39,0.7]
[1752828403508,0.06,179.42,179.36,0.55753791]
[1752828403509,0.06,179.42,179.41,12.2145379]
[1752828403674,0.06,179.42,179.41,12.9145379]
[1752828404161,0.06,179.42,179.4,6.1315496]
[1752828404162,0.06,179.42,179.4,5.574136]
[1752828404356,0.06,179.42,179.41,12.2145379]
[1752828404549,0.06,179.42,179.4,6.274136]
[1752828404750,0.06,179.42,179.39,17.78898053]
[1752828405371,0.06,179.42,179.39,5.57444263]
[1752828405874,0.06,179.42,179.39,18.48898053]
[1752828406366,0.06,179.42,179.39,5.57444263]
[1752828406666,0.06,179.42,179.41,12.2145379]
[1752828407057,0.06,179.42,179.41,12.9145379]
[1752828407376,0.06,179.42,179.41,18.48836321]
[1752828407672,0.06,179.42,179.41,6.27382531]
[1752828410556,0.06,179.42,179.41,18.48836321]
[1752828411051,43.2945379,179.42,179.35,147.9747]
[1752828411251,43.2945379,179.42,179.39,12.2145379]
[1752828411252,31.08,179.42,179.39,12.2145379]
[1752828411479,31.08,179.42,179.41,12.2145379]
[1752828411480,0.06,179.42,179.41,12.2145379]
[1752828411648,0.06,179.42,179.41,12.9145379]
[1752828413271,0.06,179.42,179.41,18.48836321]
[1752828414074,0.06,179.42,179.41,6.27382531]
[1752828414663,0.06,179.42,179.41,18.48836321]
[1752828414862,0.06,179.42,179.41,6.27382531]
[1752828415162,0.06,179.42,179.41,18.48836321]
[1752828415777,12.2745379,179.42,179.38,5.57447134]
[1752828416271,12.2145379,179.39,179.34,0.03]
[1752828416578,12.2145379,179.38,179.34,0.03]
[1752828417063,12.2145379,179.39,179.34,12.9045379]
[1752828417260,43.2145379,179.39,179.34,12.9045379]
[1752828417565,43.2145379,179.39,179.34,18.48023435]
[1752828417874,31.0,179.39,179.35,12.2145379]
[1752828418048,31.0,179.39,179.36,12.8745379]
[1752828418253,43.2145379,179.39,179.34,5.60569645]
[1752828418467,12.2145379,179.36,179.34,0.03]
[1752828418871,0.51,179.38,179.34,0.03]
[1752828419175,12.2145379,179.35,179.34,0.03]
[1752828419355,59.99922187,179.35,179.34,0.03]
[1752828419555,60.50922187,179.35,179.34,0.03]
[1752828420478,31.0,179.35,179.34,0.03]
[1752828420678,26.0,179.39,179.34,12.9045379]
[1752828420976,0.06,179.42,179.37,12.2145379]
[1752828421163,31.0,179.41,179.38,12.8745379]
[1752828421362,31.0,179.41,179.39,5.57444673]
[1752828422075,0.06,179.42,179.4,12.2145379]
[1752828422290,0.06,179.42,179.4,12.8745379]
[1752828422693,0.06,179.42,179.39,5.57444673]
[1752828423066,12.2145379,179.41,179.34,168.00269956]
[1752828423387,12.2145379,179.41,179.36,12.2145379]
[1752828423577,43.2745379,179.42,179.37,17.78960619]
[1752828423773,31.06,179.42,179.39,12.2145379]
[1752828424167,31.06,179.42,179.4,12.8745379]
[1752828424369,30.889492,179.42,179.39,12.2145379]
[1752828424978,43.1040299,179.42,179.37,18.44960619]
[1752828425274,30.889492,179.42,179.37,18.44960619]
[1752828425471,30.889492,179.42,179.38,18.44914437]
[1752828426098,30.889492,179.42,179.39,0.66]
[1752828426307,30.889492,179.42,179.38,5.57460647]
[1752828426591,30.889492,179.42,179.39,12.8745379]
[1752828426796,30.889492,179.42,179.38,17.78914437]
[1752828427164,30.889492,179.42,179.38,17.81914437]
[1752828427582,30.949492,179.42,179.38,17.81914437]
[1752828427773,30.949492,179.42,179.38,18.47914437]
[1752828428397,30.949492,179.42,179.38,17.81914437]
[1752828428598,0.06,179.42,179.39,0.66]
[1752828428890,0.06,179.42,179.41,12.2145379]
[1752828429198,0.06,179.42,179.4,0.66]
[1752828429378,0.06,179.42,179.38,17.81914437]
[1752828429781,12.2145379,179.41,179.38,0.03]
[1752828429979,12.2145379,179.41,179.38,5.6047076]
[1752828430199,30.98,179.41,179.38,5.6047076]
[1752828430693,30.98,179.41,179.39,12.8745379]
[1752828430897,0.06,179.42,179.4,12.8745379]
[1752828431089,0.06,179.42,179.41,12.77192043]
[1752828431284,0.06,179.42,179.41,13.43192043]
[1752828431681,0.06,179.42,179.41,6.79120784]
[1752828431876,0.06,179.42,179.41,19.00574574]
[1752828433001,0.06,179.42,179.41,165.40574574]
[1752828433176,0.06,179.42,179.41,164.84836321]
[1752828433698,0.06,179.42,179.41,152.63382531]
[1752828433872,0.06,179.42,179.41,164.84836321]
[1752828435687,0.06,179.42,179.41,164.18836321]
[1752828436299,0.06,179.42,179.41,164.84836321]
[1752828436880,0.06,179.42,179.41,151.97382531]
[1752828437102,0.06,179.42,179.39,17.78898463]
[1752828437475,0.06,179.42,179.38,5.60469143]
[1752828437696,12.2745379,179.42,179.38,5.60469143]
[1752828437998,0.06,179.42,179.39,12.2145379]
[1752828438212,0.06,179.42,179.4,12.8745379]
[1752828438382,0.06,179.42,179.4,0.66]
[1752828438584,0.06,179.42,179.39,12.2145379]
[1752828438779,0.06,179.42,179.4,12.8745379]
[1752828439081,0.06,179.42,179.39,12.2145379]
[1752828439487,0.06,179.42,179.38,6.26469143]
[1752828439488,0.06,179.42,179.38,18.47922933]
[1752828439701,0.06,179.42,179.4,12.2145379]
[1752828440199,0.06,179.42,179.4,17.7884717]
[1752828440795,0.06,179.42,179.38,12.2445379]
[1752828440987,12.2745379,179.42,179.38,0.03]
[1752828441188,0.06,179.42,179.38,17.81928407]
[1752828441387,0.06,179.42,179.39,12.2145379]
[1752828441686,0.06,179.42,179.39,12.8745379]
[1752828441892,0.06,179.42,179.41,12.2145379]
[1752828442291,0.06,179.42,179.41,18.44836321]
[1752828445116,0.06,179.42,179.41,24.02036321]
[1752828445314,0.06,179.42,179.41,164.84836321]
[1752828446223,1e-08,179.42,179.41,170.42036321]
[1752828446378,1e-08,179.42,179.41,164.84836321]
[1752828446584,1e-08,179.43,179.41,164.84836321]
[1752828446809,1e-08,179.43,179.42,13.49188936]
[1752828447392,1e-08,179.43,179.42,19.06540401]
[1752828447609,1e-08,179.43,179.42,165.46540401]
[1752828447802,1e-08,179.43,179.42,164.90805255]
[1752828447984,1e-08,179.43,179.42,203.97005255]
[1752828448192,1e-08,179.43,179.42,242.97485255]
[1752828448711,1e-08,179.46,179.43,33.49]
[1752828448905,1e-08,179.46,179.45,12.2145379]
[1752828449283,1e-08,179.46,179.45,18.50712079]
[1752828449610,1e-08,179.46,179.45,24.07912079]
[1752828449787,1e-08,179.46,179.45,18.50712079]
[1752828449982,1e-08,179.47,179.46,12.2145379]
[1752828450212,1e-08,179.48,179.46,44.43176513]
[1752828450407,0.06,179.5,179.47,12.9345379]
[1752828450611,0.06,179.52,179.49,12.2145379]
[1752828450918,0.06,179.52,179.5,43.1545379]
[1752828451414,0.06,179.52,179.5,49.44556854]
[1752828452729,0.06,179.52,179.5,37.23103064]
[1752828452889,0.06,179.52,179.5,49.44556854]
[1752828453397,0.06,179.52,179.5,195.84556854]
[1752828453913,0.06,179.52,179.5,182.91103064]
[1752828454210,0.06,179.52,179.5,164.18556854]
[1752828454400,0.06,179.52,179.5,164.90556854]
[1752828454799,0.06,179.52,179.5,18.50556854]
[1752828455293,0.06,179.52,179.5,164.90556854]
[1752828455689,0.06,179.52,179.5,5.57103064]
[1752828455890,0.06,179.52,179.5,18.50556854]
[1752828456314,0.06,179.52,179.49,177.32]
[1752828456315,0.06,179.52,179.49,151.97127395]
[1752828456620,0.51,179.5,179.45,5.57258289]
[1752828456795,0.51,179.49,179.45,17.78712079]
[1752828456994,0.57,179.51,179.47,12.2145379]
[1752828457315,0.06,179.51,179.49,12.2145379]
[1752828457691,0.06,179.51,179.48,12.2145379]
[1752828457931,0.06,179.51,179.48,17.78616557]
[1752828458091,0.06,179.51,179.48,5.57162767]
[1752828458286,0.06,179.51,179.48,17.78616557]
[1752828458821,0.06,179.51,179.49,12.2145379]
[1752828459027,0.06,179.51,179.49,12.13952088]
[1752828459325,0.06,179.51,179.48,17.78616557]
[1752828459507,0.06,179.51,179.5,12.2145379]
[1752828459697,0.06,179.51,179.5,17.78556854]
[1752828459909,0.06,179.51,179.5,18.3426716]
[1752828460127,0.06,179.51,179.5,19.0626716]
[1752828460304,0.06,179.51,179.5,52.5526716]
[1752828460510,0.06,179.51,179.5,19.0626716]
[1752828460826,0.06,179.51,179.49,48.68580573]
[1752828461023,0.06,179.51,179.49,5.57126783]
[1752828461539,0.06,179.51,179.48,5.57154819]
[1752828461715,0.06,179.51,179.48,17.78608609]
[1752828461905,0.06,179.51,179.49,12.2145379]
[1752828462105,0.06,179.51,179.48,17.78608609]
[1752828462547,12.7845379,179.51,179.46,5.57219254]
[1752828463049,12.2145379,179.49,179.45,146.4]
[1752828463331,12.7245379,179.49,179.44,5.57289344]
[1752828463566,12.2145379,179.47,179.43,5.57309519]
[1752828463751,0.51,179.48,179.43,5.57309519]
[1752828463915,12.7245379,179.48,179.43,17.78763309]
[1752828464242,12.2145379,179.47,179.43,5.57309519]
[1752828465308,12.2145379,179.47,179.43,6.29309519]
[1752828465727,12.2145379,179.47,179.43,5.57309519]
[1752828465931,12.2145379,179.45,179.41,146.4]
[1752828466108,12.2145379,179.42,179.39,0.03]
[1752828466304,12.2145379,179.41,179.39,0.03]
[1752828466540,12.2145379,179.43,179.39,6.32444614]
[1752828466722,0.51,179.46,179.4,0.72]
[1752828466921,12.2145379,179.44,179.4,0.72]
[1752828467510,12.2145379,179.44,179.39,5.60444614]
[1752828467511,12.2145379,179.42,179.39,0.03]